bitfinex/quotes_ETHUSD_20251215
["timestamp","ask_amount","ask_price","bid_price","bid_amount"]
[1765824402225,0.561,2923.7,2923.2,0.489]
[1765824402754,0.561,2923.7,2923.6,0.4845]
[1765824403340,0.61218668,2924.0,2923.7,6.84064712]
[1765824403544,0.561,2923.9,2923.7,0.4845]
[1765824404359,0.7546,2923.9,2923.2,0.489]
[1765824404561,0.05118668,2923.6,2923.1,3.58796737]
[1765824404767,0.05118668,2923.6,2923.1,0.002]
[1765824405056,0.4905,2923.5,2923.1,0.002]
[1765824405258,0.405504,2923.4,2923.1,0.002]
[1765824405461,3.98179157,2923.3,2923.1,0.002]
[1765824405759,0.43872956,2923.2,2923.1,0.002]
[1765824406145,0.99972956,2923.2,2923.1,0.002]
[1765824406346,0.561,2923.2,2923.1,0.002]
[1765824406736,1.0515,2923.2,2923.1,0.002]
[1765824406928,0.561,2923.2,2923.1,0.002]
[1765824407141,0.05118668,2923.4,2923.1,0.002]
[1765824407345,0.561,2923.3,2923.1,0.167]
[1765824407545,0.561,2923.3,2923.1,3.58798598]
[1765824408683,0.561,2923.3,2923.2,0.4845]
[1765824409195,0.561,2923.7,2923.2,1.77175116]
[1765824409395,0.001,2924.1,2923.7,0.4845]
[1765824409574,0.001,2924.1,2924.0,0.4845]
[1765824410169,0.001,2924.1,2923.4,0.58047529]
[1765824410371,0.001,2924.1,2923.6,0.489]
[1765824411483,0.001,2924.1,2923.8,0.58047529]
[1765824411682,0.001,2924.1,2923.9,1.0841446]
[1765824411990,0.001,2924.1,2924.0,0.489]
[1765824412561,0.001,2924.1,2924.0,0.9735]
[1765824413502,0.001,2924.1,2924.0,4.39347264]
[1765824413867,0.001,2924.1,2924.0,4.97394793]
[1765824414068,0.001,2924.1,2924.0,6.63615749]
[1765824415392,0.001,2924.1,2924.0,4.97394793]
[1765824417306,0.001,2924.1,2924.0,5.37945193]
[1765824417511,0.001,2924.5,2924.4,3.99998014]
[1765824417672,0.001,2924.5,2924.4,4.48448014]
[1765824418008,0.001,2924.5,2924.4,4.97348014]
[1765824418207,0.001,2924.5,2924.4,6.5271815]
[1765824418411,0.001,2924.5,2924.4,4.48448014]
[1765824418572,0.001,2924.5,2924.4,4.97348014]
[1765824419373,0.001,2924.5,2924.4,5.37898414]
[1765824419980,0.001,2925.3,2924.4,5.37898414]
[1765824419981,0.001,2925.3,2924.6,0.405504]
[1765824420181,0.001,2925.3,2925.2,0.652]
[1765824420700,0.001,2925.3,2924.9,0.58047529]
[1765824420701,1.5094,2925.3,2924.5,0.58047529]
[1765824420924,0.5187,2924.6,2923.8,0.1675]
[1765824421076,0.1936,2924.6,2923.2,0.489]
[1765824421403,0.1936,2924.9,2924.3,3.41957917]
[1765824421599,3.4191541,2924.7,2923.3,3.42075265]
[1765824421808,0.405504,2924.6,2923.2,10.26272577]
[1765824422000,3.4191541,2924.7,2923.5,0.4839]
[1765824422201,0.561,2924.6,2924.1,0.1675]
[1765824422773,1.0437,2924.6,2923.5,0.4839]
[1765824422971,0.405504,2924.5,2923.2,6.84181718]
[1765824423190,0.888204,2924.5,2923.2,6.84181718]
[1765824423615,3.41973873,2924.2,2923.2,6.84181718]
[1765824424006,0.4827,2924.1,2923.2,6.84181718]
[1765824424207,0.405504,2924.0,2923.1,0.002]
[1765824424408,0.1937,2923.3,2923.1,0.002]
[1765824424739,0.1937,2924.3,2923.2,0.4839]
[1765824424891,0.2436,2924.9,2923.2,1.06437529]
[1765824424892,0.561,2924.2,2923.2,1.06437529]
[1765824425091,0.1936,2924.9,2923.2,1.06437529]
[1765824425092,0.561,2924.3,2923.2,1.06437529]
[1765824425293,0.4827,2925.1,2923.3,0.4839]
[1765824425598,0.561,2925.2,2924.0,0.58047529]
[1765824425795,0.001,2925.3,2925.2,0.1675]
[1765824426688,0.001,2925.3,2925.2,0.6514]
[1765824427831,0.001,2925.3,2925.2,4.65044496]
[1765824429551,0.001,2925.3,2925.2,4.68463065]
[1765824429747,0.001,2925.3,2925.2,4.65044496]
[1765824429923,0.001,2925.3,2925.1,3.41867785]
[1765824430120,0.001,2925.3,2925.2,3.41856967]
[1765824430744,0.001,2925.3,2925.2,4.48294496]
[1765824430923,0.001,2925.3,2925.1,3.5861444]
[1765824431250,0.001,2925.3,2924.0,3.42187537]
[1765824431251,0.4827,2925.2,2924.0,0.002]
[1765824431449,0.001,2925.3,2924.8,3.41895085]
[1765824431622,0.001,2925.3,2924.4,3.41939085]
[1765824431819,0.001,2925.3,2924.0,0.002]
[1765824431820,3.41868654,2925.1,2924.0,0.002]
[1765824432023,0.56,2925.0,2924.0,0.002]
[1765824432224,0.05118668,2924.7,2924.0,0.002]
[1765824432748,0.05118668,2924.7,2924.1,0.4839]
[1765824432948,0.61118668,2924.7,2924.1,0.4839]
[1765824434128,0.61118668,2924.7,2924.2,3.41973873]
[1765824434330,0.61118668,2924.7,2924.0,0.002]
[1765824434331,0.05118668,2924.5,2924.0,0.002]
[1765824434531,0.84952604,2924.5,2924.0,0.002]
[1765824434761,0.4827,2924.4,2924.0,0.002]
[1765824435168,0.56,2924.3,2924.0,0.002]
[1765824435537,0.56,2924.3,2924.1,3.41985355]
[1765824435869,0.56,2924.3,2924.0,0.002]
[1765824436171,0.56,2924.3,2924.1,3.41983641]
[1765824436473,0.61118668,2924.5,2924.0,0.4859]
[1765824436628,0.61118668,2924.5,2924.0,0.002]
[1765824436829,4.92143699,2924.5,2924.0,0.002]
[1765824437046,0.05118668,2924.7,2924.0,0.002]
[1765824437246,0.56,2924.6,2924.0,0.002]
[1765824438028,0.56,2924.6,2924.1,0.4839]
[1765824438239,0.56,2924.6,2924.2,10.25921619]
[1765824438661,0.56,2924.6,2924.3,0.4839]
[1765824438870,0.56,2924.6,2924.0,0.002]
[1765824438871,0.56,2924.6,2924.1,3.41980643]
[1765824439032,0.95790509,2924.6,2924.1,3.41980643]
[1765824439236,0.95790509,2924.6,2924.1,6.83966211]
[1765824439437,0.56,2925.0,2924.2,0.4839]
[1765824439668,0.1937,2924.9,2924.1,6.83966211]
[1765824440350,0.1937,2924.9,2924.1,0.58047529]
[1765824440962,0.05118668,2925.2,2924.1,1.06437529]
[1765824441164,0.56,2925.1,2924.1,1.06437529]
[1765824441466,0.56,2925.1,2924.2,1.61652313]
[1765824441856,0.56,2925.1,2924.2,1.13262313]
[1765824442056,0.001,2925.3,2924.3,0.4839]
[1765824442471,0.001,2925.3,2924.5,0.58047529]
[1765824443549,0.001,2925.3,2924.0,0.002]
[1765824443550,0.6447,2924.6,2924.0,0.002]
[1765824443849,0.56,2924.5,2924.0,0.002]
[1765824444256,0.56,2924.5,2924.1,3.41978572]
[1765824444655,0.56,2924.5,2924.0,0.002]
[1765824444864,0.4827,2924.4,2924.0,0.002]
[1765824445267,0.53388668,2924.4,2924.0,0.002]
[1765824445460,0.405504,2924.3,2924.0,0.002]
[1765824445870,0.405504,2924.1,2923.1,0.002]
[1765824446261,0.405504,2923.9,2923.1,0.002]
[1765824446461,0.05118668,2923.7,2923.1,0.002]
[1765824446667,6.8408811,2923.6,2923.1,0.002]
[1765824446852,8.13642788,2923.6,2923.1,0.002]
[1765824447178,0.4827,2923.5,2923.1,0.002]
[1765824447582,0.455504,2923.4,2923.1,0.002]
[1765824448089,1.0427,2923.3,2923.1,0.002]
[1765824448451,0.05118668,2923.5,2923.1,0.002]
[1765824448682,0.405504,2923.3,2923.1,0.002]
[1765824448898,0.98597929,2923.3,2923.1,0.002]
[1765824449194,0.4827,2923.2,2923.1,0.002]
[1765824449354,1.0427,2923.2,2923.1,0.002]
[1765824450755,4.46360859,2923.2,2923.1,0.002]
[1765824450999,5.31521483,2923.2,2923.1,0.002]
[1765824451202,5.72071883,2923.2,2923.1,0.002]
[1765824451496,4.75521483,2923.2,2923.1,0.002]
[1765824451674,3.98090859,2923.2,2923.1,0.002]
[1765824452076,0.56,2923.2,2923.1,0.002]
[1765824453008,0.05118668,2924.2,2923.1,1.15741025]
[1765824453255,0.05118668,2924.2,2923.3,0.4933]
[1765824453256,0.56,2924.1,2923.3,0.4933]
[1765824453544,0.4942,2925.1,2924.1,0.1675]
[1765824453706,0.56,2924.6,2924.1,0.1675]
[1765824454109,0.56,2924.6,2924.2,0.4609]
[1765824454525,0.56,2924.6,2924.1,0.1675]
[1765824454707,1.0532,2924.6,2923.8,0.58047529]
[1765824454915,0.56,2924.6,2923.7,6.84064712]
[1765824455115,1.47917929,2924.5,2923.1,0.6299]
[1765824455421,1.07367529,2924.5,2923.6,3.42039527]
[1765824455740,0.4932,2924.4,2923.1,0.169]
[1765824455933,0.405504,2924.3,2923.3,0.002]
[1765824456136,0.05118668,2923.9,2923.3,0.002]
[1765824456342,0.56,2923.8,2923.3,0.002]
[1765824456635,0.05118668,2923.7,2923.3,0.002]
[1765824459438,0.56,2923.6,2923.3,0.002]
[1765824460237,0.56,2923.6,2923.3,0.4629]
[1765824461126,0.05118668,2924.1,2923.3,0.4629]
[1765824461127,0.4942,2925.1,2923.5,0.4933]
[1765824461336,0.56,2924.7,2923.6,0.4933]
[1765824461537,0.56,2924.7,2923.7,0.4609]
[1765824461730,1.1032,2924.7,2923.6,0.4933]
[1765824461909,0.405504,2924.6,2923.4,3.42067455]
[1765824462240,0.05118668,2923.9,2923.3,3.42273975]
[1765824462427,0.56,2923.8,2923.3,3.42273975]
[1765824463447,0.56,2923.8,2923.3,0.002]
[1765824464039,0.51118668,2923.4,2923.3,0.002]
[1765824464342,0.05118668,2923.4,2923.3,0.002]
[1765824464845,1.00438668,2923.4,2923.3,0.002]
[1765824465450,0.05118668,2923.4,2923.3,0.002]
[1765824465822,0.61118668,2923.4,2923.3,0.002]
[1765824467910,4.98506123,2923.4,2923.3,0.002]
[1765824470242,5.97104052,2923.4,2923.3,0.002]
[1765824470545,0.3057,2923.2,2923.0,0.302]
[1765824470752,0.50958668,2923.1,2922.8,0.002]
[1765824470914,0.55778668,2922.9,2922.8,0.002]
[1765824471117,0.61118668,2922.9,2922.8,0.002]
[1765824471343,1.56438668,2922.9,2922.8,0.002]
[1765824471934,1.96989068,2922.9,2922.8,0.002]
[1765824472134,2.17199842,2922.9,2922.8,0.002]
[1765824472335,6.17373341,2922.9,2922.8,0.002]
[1765824474274,5.76822941,2922.9,2922.8,0.002]
[1765824474638,1.76649442,2922.9,2922.8,0.002]
[1765824474834,5.59325812,2922.9,2922.8,0.002]
[1765824476575,6.17373341,2922.9,2922.8,0.002]
[1765824478371,0.98597929,2922.6,2922.1,0.002]
[1765824478675,0.75669068,2922.2,2922.1,0.002]
[1765824479061,1.24989068,2922.2,2922.1,0.002]
[1765824479858,1.24989068,2922.2,2922.0,0.002]
[1765824480048,1.967104,2922.1,2922.0,0.002]
[1765824480248,0.501,2921.7,2921.0,0.002]
[1765824480444,0.46,2921.1,2921.0,0.002]
[1765824480646,0.56,2921.1,2921.0,0.002]
[1765824480847,1.5132,2921.1,2921.0,0.002]
[1765824481675,0.405504,2920.8,2919.9,0.002]
[1765824481844,0.56,2920.7,2919.9,0.002]
[1765824482169,0.7991704,2920.7,2919.9,3.42677482]
[1765824482470,0.7279704,2920.7,2919.9,0.002]
[1765824482638,0.56,2920.6,2919.9,0.002]
[1765824482964,1.0488,2920.6,2919.9,0.002]
[1765824483198,0.05118668,2920.3,2919.9,0.002]
[1765824483334,0.4533,2920.0,2919.9,0.002]
[1765824483534,0.858804,2920.0,2919.9,0.002]
[1765824483836,0.858804,2920.0,2919.0,0.002]
[1765824483837,0.405504,2919.7,2919.0,0.002]
[1765824484156,0.405504,2919.1,2919.0,0.002]
[1765824484381,0.5388,2919.7,2919.0,0.002]
[1765824484538,0.405504,2919.4,2919.0,0.002]
[1765824484966,0.4888,2919.3,2919.0,0.002]
[1765824486074,0.56,2919.2,2919.0,0.002]
[1765824486311,0.405504,2919.1,2919.0,0.002]
[1765824486610,4.90049269,2919.1,2919.0,0.002]
[1765824487347,0.56,2919.1,2919.0,0.002]
[1765824487550,1.0488,2919.1,2919.0,0.002]
[1765824487857,0.56,2919.1,2919.0,0.002]
[1765824488250,0.56,2919.1,2919.0,0.4905]
[1765824488553,0.56,2919.1,2919.0,4.39363076]
[1765824488953,0.1937,2919.9,2919.0,11.24529228]
[1765824489176,0.05118668,2920.5,2919.1,1.26753242]
[1765824489354,0.05118668,2920.5,2919.4,0.58047529]
[1765824489679,0.56,2920.2,2919.2,1.72858247]
[1765824489878,0.56,2920.2,2919.3,0.4773]
[1765824490580,0.56,2920.2,2919.4,6.85072274]
[1765824491286,0.56,2920.2,2919.4,10.27608411]
[1765824491480,0.56,2920.2,2919.5,1.07533841]
[1765824491871,0.05118668,2920.5,2920.1,0.169]
[1765824492072,0.56,2920.2,2919.6,0.4773]
[1765824492281,0.56,2920.2,2919.5,1.07533841]
[1765824492478,1.0488,2920.2,2919.2,7.43166739]
[1765824492784,0.56,2920.1,2919.2,7.43166739]
[1765824492989,0.405504,2920.0,2919.1,3.42565985]
[1765824493293,0.894304,2920.0,2919.1,3.42565985]
[1765824493458,0.1937,2919.9,2919.1,3.42565985]
[1765824493657,0.6825,2919.9,2919.1,3.42565985]
[1765824494084,10.32414818,2920.3,2919.2,0.51155596]
[1765824494085,0.05118668,2920.3,2919.2,0.51155596]
[1765824494384,0.56,2920.2,2919.2,1.09203125]
[1765824494588,0.56,2920.2,2919.4,0.58047529]
[1765824494793,0.56,2920.2,2919.5,1.08569114]
[1765824495286,0.56,2920.2,2920.1,0.6575]
[1765824495688,0.56,2920.2,2920.1,1.1348]
[1765824495891,0.56,2920.2,2919.5,1.56299114]
[1765824496392,0.56,2920.2,2919.5,1.08569114]
[1765824496693,0.56,2920.2,2920.1,4.08204025]
[1765824496874,0.56,2920.2,2920.1,3.42454025]
[1765824497396,0.10118668,2921.2,2920.1,3.42454025]
[1765824497397,0.56,2921.4,2920.2,0.58047529]
[1765824497597,0.56,2921.4,2921.3,0.4885]
[1765824497797,0.56,2921.8,2921.3,0.4885]
[1765824498093,0.56,2921.8,2921.4,0.03423016]
[1765824498270,0.56,2921.8,2921.7,0.4885]
[1765824498466,0.56,2921.8,2921.7,4.38846488]
[1765824498869,0.56,2921.8,2921.7,3.42266488]
[1765824499100,0.56,2921.8,2921.6,3.42276571]
[1765824499801,0.56,2921.8,2920.9,0.4773]
[1765824500005,0.56,2921.8,2921.5,3.4228356]
[1765824501074,0.56,2921.8,2921.3,0.58047529]
[1765824501766,0.561,2921.8,2921.3,0.58047529]
[1765824503079,0.561,2921.8,2921.4,6.84603272]
[1765824503498,0.561,2921.8,2921.4,3.42301636]
[1765824503694,0.561,2921.8,2920.2,3.42436732]
[1765824503695,4.4013124,2921.8,2920.2,3.42436732]
[1765824503897,0.4533,2921.5,2920.4,0.4773]
[1765824504071,0.4533,2921.5,2920.0,7.14229812]
[1765824504415,0.4533,2921.5,2920.6,3.42393593]
[1765824504416,0.4888,2921.4,2920.6,3.42393593]
[1765824504615,0.965504,2921.3,2920.3,3.42424034]
[1765824504904,0.965504,2921.3,2920.2,6.84884596]
[1765824505107,7.33530142,2921.2,2920.2,6.84884596]
[1765824505309,0.83008054,2921.1,2920.2,6.84884596]
[1765824505489,1.31888054,2921.1,2920.2,6.84884596]
[1765824505724,0.83008054,2921.1,2920.2,6.84884596]
[1765824505881,1.31888054,2921.1,2920.2,6.84884596]
[1765824506270,0.05118668,2921.5,2921.0,0.4885]
[1765824506484,0.001,2921.8,2921.0,0.9658]
[1765824506767,0.56,2921.4,2921.0,0.9658]
[1765824506986,0.56,2921.4,2921.2,6.84650142]
[1765824507186,0.001,2921.8,2921.3,1.09200662]
[1765824507389,0.001,2921.8,2921.3,3.25050605]
[1765824507588,0.001,2921.8,2921.4,0.4773]
[1765824508866,0.001,2921.8,2921.3,0.58047529]
[1765824509091,0.001,2921.8,2921.4,6.84603272]
[1765824509305,0.001,2921.8,2921.4,3.42301636]
[1765824509526,0.4898,2921.8,2921.4,6.84603272]
[1765824509890,0.4898,2921.8,2921.4,3.42301636]
[1765824510135,0.4898,2921.8,2921.4,6.84603272]
[1765824510136,0.001,2921.8,2921.4,6.84603272]
[1765824510291,0.001,2921.8,2921.5,1.05777529]
[1765824510482,0.001,2921.8,2921.5,0.58047529]
[1765824511113,0.001,2921.8,2921.6,6.84556406]
[1765824511616,0.001,2921.8,2921.7,0.4639]
[1765824511820,0.001,2921.8,2921.6,6.84556406]
[1765824512117,0.001,2921.8,2921.6,3.42278203]
[1765824512286,0.001,2921.8,2921.6,6.84556406]
[1765824512487,0.001,2921.8,2921.7,0.51142664]
[1765824512690,0.001,2921.8,2921.7,0.9441]
[1765824513243,0.001,2921.8,2921.7,4.36676488]
[1765824513600,0.001,2921.8,2921.7,3.88956488]
[1765824514719,0.001,2921.8,2921.5,3.4228777]
[1765824515024,0.001,2921.8,2921.6,3.42272223]
[1765824515732,0.001,2921.8,2921.5,3.42285338]
[1765824516217,0.001,2921.8,2921.7,0.4669]
[1765824516619,0.001,2921.8,2921.7,0.9441]
[1765824516995,0.001,2921.8,2921.7,1.78113279]
[1765824517328,0.559,2922.6,2921.7,1.78113279]
[1765824517525,0.559,2922.6,2922.0,0.58047529]
[1765824517832,0.559,2922.6,2922.5,0.1675]
[1765824518433,0.559,2922.6,2922.5,0.4669]
[1765824518611,0.559,2922.6,2922.0,7.61949812]
[1765824518929,0.559,2922.6,2922.1,0.81999734]
[1765824519124,0.559,2922.6,2921.9,1.05767529]
[1765824519500,0.559,2922.6,2922.0,6.84462696]
[1765824520225,0.559,2922.6,2922.5,0.4669]
[1765824520627,0.559,2922.6,2922.5,0.9441]
[1765824521031,0.001,2923.0,2922.5,1.52457529]
[1765824521208,0.001,2923.0,2922.9,0.4669]
[1765824521531,0.001,2923.0,2922.9,3.8881597]
[1765824521731,0.001,2923.0,2922.9,4.3653597]
[1765824522231,0.001,2923.0,2922.9,3.8881597]
[1765824522404,0.001,2923.0,2922.9,4.3653597]
[1765824524019,0.001,2923.0,2922.9,3.8881597]
[1765824524827,0.001,2923.0,2922.9,4.3653597]
[1765824525026,0.001,2923.0,2922.9,3.8881597]
[1765824525396,0.001,2923.0,2922.9,3.4212597]
[1765824526105,0.001,2923.0,2922.6,7.42369707]
[1765824526512,0.001,2923.0,2922.6,7.90089707]
[1765824527205,0.001,2923.0,2922.7,0.4772]
[1765824527600,0.001,2923.0,2922.9,0.4669]
[1765824528011,0.001,2923.0,2922.9,4.94583499]
[1765824528198,0.001,2923.8,2923.0,0.58047529]
[1765824528404,0.001,2923.8,2922.9,22.84649571]
[1765824528405,0.001,2923.8,2923.7,0.6424]
[1765824529229,0.001,2923.8,2923.5,0.1755]
[1765824529538,0.001,2923.8,2923.7,0.4669]
[1765824530351,0.001,2923.8,2923.7,4.36442356]
[1765824530715,0.001,2923.8,2923.7,3.88722356]
[1765824531306,0.9121,2923.8,2923.1,0.1755]
[1765824531510,0.9121,2923.8,2923.0,3.42112581]
[1765824532038,0.9121,2923.8,2922.8,3.59685198]
[1765824532039,0.001,2923.8,2922.8,0.1755]
[1765824532241,0.001,2923.8,2923.7,3.88722356]
[1765824533359,0.001,2923.8,2923.4,3.42060728]
[1765824533575,0.001,2923.8,2923.2,0.58047529]
[1765824533711,0.001,2923.8,2922.8,0.75597529]
[1765824533909,0.4612,2923.8,2923.2,3.4209016]
[1765824534332,0.001,2923.8,2922.9,6.8425194]
[1765824534639,0.001,2923.8,2923.0,0.4772]
[1765824534840,0.559,2923.7,2923.0,0.4772]
[1765824535046,0.559,2923.7,2922.9,6.8425194]
[1765824535225,1.00304188,2923.7,2922.9,6.8425194]
[1765824535428,0.559,2923.7,2922.9,6.8425194]
[1765824535623,0.001,2923.8,2923.6,0.4669]
[1765824535828,0.001,2923.8,2923.7,0.4669]
[1765824536344,0.001,2923.8,2923.7,4.36442356]
[1765824536538,0.001,2923.8,2923.7,4.94489885]
[1765824536840,0.001,2924.0,2923.8,0.58047529]
[1765824537039,0.001,2924.2,2924.0,0.58047529]
[1765824537252,0.001,2924.2,2924.1,0.6359]
[1765824537454,0.001,2924.2,2924.1,0.169]
[1765824538022,0.56,2924.2,2923.7,3.42032356]
[1765824538321,0.95796888,2924.2,2923.7,3.42032356]
[1765824538521,0.001,2923.8,2923.5,6.8411151]
[1765824539031,0.001,2923.8,2923.7,0.4669]
[1765824540341,0.001,2923.8,2923.7,0.9441]
[1765824540552,0.001,2923.8,2923.7,4.36442356]
[1765824540879,0.4519,2923.8,2923.3,0.58047529]
[1765824541034,0.4519,2923.8,2923.0,0.4772]
[1765824541035,0.9121,2923.8,2923.2,3.420848]
[1765824541341,0.001,2923.8,2923.4,3.42060052]
[1765824541537,0.56,2923.8,2923.5,3.42048237]
[1765824542072,0.56,2923.8,2923.7,3.91022356]
[1765824542073,0.001,2923.8,2923.7,3.91022356]
[1765824542572,0.001,2923.8,2923.7,4.36622356]
[1765824542779,1.1381,2923.8,2922.4,0.456]
[1765824542929,1.1381,2923.8,2922.5,6.84341031]
[1765824542930,0.3273,2923.6,2922.5,6.84341031]
[1765824543126,0.559,2923.5,2922.6,0.58047529]
[1765824543328,0.559,2923.5,2922.6,1.03647529]
[1765824543572,1.0299,2923.5,2922.5,6.84341031]
[1765824543776,0.182,2923.8,2922.6,1.03647529]
[1765824543942,0.558,2923.7,2922.7,1.16437629]
[1765824544129,0.001,2923.8,2922.6,0.58047529]
[1765824544333,0.558,2923.7,2922.7,0.456]
[1765824544528,0.558,2923.7,2922.8,10.26413028]
[1765824544963,0.001,2923.8,2923.6,0.6654]
[1765824545268,0.001,2925.1,2924.2,0.405504]
[1765824545453,0.001,2925.1,2924.9,0.4899]
[1765824546061,0.001,2925.1,2924.9,1.03647529]
[1765824546229,0.001,2925.1,2924.9,1.88482956]
[1765824546435,0.001,2925.1,2924.9,1.30435427]
[1765824546630,0.001,2925.1,2924.9,4.45539559]
[1765824548710,0.001,2925.1,2924.9,4.48958479]
[1765824548990,0.001,2925.1,2924.9,4.45539559]
[1765824549556,0.001,2925.1,2924.9,4.86089959]
[1765824549884,0.001,2925.1,2924.9,6.02809645]
[1765824550089,0.001,2925.1,2924.9,6.43360045]
[1765824550831,0.001,2925.1,2924.9,6.02809645]
[1765824550997,0.001,2925.1,2924.9,4.45539559]
[1765824551167,0.001,2925.1,2924.9,3.8749203]
[1765824551494,0.001,2925.1,2924.9,4.45539559]
[1765824551895,0.001,2925.1,2924.9,3.4189203]
[1765824552388,0.001,2925.1,2924.8,3.41900972]
[1765824552591,0.001,2925.1,2924.9,3.4189203]
[1765824552788,0.001,2925.1,2924.8,0.456]
[1765824553175,0.001,2925.1,2924.5,7.41925113]
[1765824553585,0.001,2925.1,2924.5,7.87525113]
[1765824553796,0.001,2925.1,2924.5,3.99986321]
[1765824554164,0.001,2925.1,2924.4,3.41946105]
[1765824554394,0.001,2925.1,2924.4,6.8389659]
[1765824554784,0.181,2924.9,2924.4,3.41946105]
[1765824554963,0.001,2925.1,2924.4,3.41946105]
[1765824555168,0.001,2925.1,2924.4,6.8389659]
[1765824555367,0.001,2925.1,2924.4,7.2949659]
[1765824555569,0.001,2925.1,2924.5,0.456]
[1765824556179,0.001,2925.1,2924.6,0.03419271]
[1765824556500,0.001,2925.1,2924.5,1.03647529]
[1765824556665,0.001,2925.1,2924.6,0.456]
[1765824556861,0.001,2925.1,2924.7,6.8383082]
[1765824557193,0.001,2925.1,2924.8,0.03419037]
[1765824557492,0.001,2925.1,2924.7,7.2943082]
[1765824557899,0.001,2925.1,2924.9,0.4899]
[1765824558506,0.001,2925.1,2924.7,6.8383082]
[1765824558670,0.001,2925.1,2924.7,0.58047529]
[1765824558994,0.001,2925.1,2924.6,3.41922241]
[1765824559192,0.001,2925.1,2924.4,0.58047529]
[1765824559573,0.001,2925.1,2924.9,0.4899]
[1765824559897,0.6519,2924.9,2924.3,3.41962178]
[1765824560196,0.001,2925.1,2924.4,0.03419504]
[1765824560563,0.001,2925.1,2924.3,6.83924356]
[1765824560564,0.559,2925.0,2924.3,6.83924356]
[1765824560964,0.559,2925.0,2924.3,13.67848712]
[1765824561164,0.001,2925.0,2924.6,0.58047529]
[1765824561577,0.001,2925.0,2924.7,0.456]
[1765824561871,0.001,2925.0,2924.9,0.4899]
[1765824562179,0.001,2925.0,2924.6,0.58047529]
[1765824562369,0.001,2925.0,2924.7,0.456]
[1765824563181,0.001,2925.0,2924.9,0.4899]
[1765824563585,0.001,2925.0,2924.8,6.83807438]
[1765824563777,0.001,2925.0,2924.6,3.99965052]
[1765824563996,0.181,2924.9,2924.7,3.41914244]
[1765824564179,0.001,2925.0,2924.7,3.41915081]
[1765824564895,0.001,2925.0,2924.9,0.4899]
[1765824565194,0.001,2925.0,2924.9,3.9088203]
[1765824565597,0.001,2925.0,2924.2,0.456]
[1765824565834,0.6519,2924.9,2924.1,0.002]
[1765824566180,0.4852,2924.2,2924.1,0.002]
[1765824566373,0.558,2924.2,2924.1,0.002]
[1765824566701,1.0289,2924.2,2924.1,0.002]
[1765824567091,0.558,2924.2,2924.1,0.002]
[1765824567598,1.0289,2924.2,2924.1,0.002]
[1765824567900,0.558,2924.2,2924.1,0.002]
[1765824568483,1.0289,2924.2,2924.1,0.002]
[1765824568697,1.434404,2924.2,2924.1,0.002]
[1765824569306,0.558,2924.2,2924.1,0.002]
[1765824569480,4.44863873,2924.2,2924.1,0.002]
[1765824569677,5.23546535,2924.2,2924.1,0.002]
[1765824570299,4.37583873,2924.2,2924.1,0.002]
[1765824570498,4.47693873,2924.2,2924.1,0.002]
[1765824570699,4.97113873,2924.2,2924.1,0.002]
[1765824571198,0.558,2924.2,2924.1,0.002]
[1765824571710,4.97113873,2924.2,2924.1,0.002]
[1765824571873,5.81021912,2924.2,2924.1,0.002]
[1765824572705,2.39048039,2924.2,2924.1,0.002]
[1765824573000,1.89628039,2924.2,2924.1,0.002]
[1765824573335,0.558,2924.2,2924.1,0.002]
[1765824573506,0.558,2924.2,2924.1,0.1775]
[1765824573685,0.23218668,2924.9,2924.1,0.6339]
[1765824573686,0.558,2924.5,2924.1,0.6339]
[1765824574604,0.558,2924.5,2924.1,0.1775]
[1765824575202,0.68868668,2924.9,2924.2,3.41973873]
[1765824575411,0.558,2924.8,2924.2,3.7796626]
[1765824576012,0.558,2924.8,2924.2,7.19940133]
[1765824576304,1.0126,2924.8,2924.1,0.002]
[1765824576714,0.4546,2924.7,2924.1,0.002]
[1765824576888,0.558,2924.8,2924.1,0.002]
[1765824576889,0.558,2924.8,2924.1,3.59733469]
[1765824577294,3.4191541,2924.7,2924.1,0.1775]
[1765824577490,0.39771541,2924.6,2924.1,3.59731915]
[1765824577892,0.85231541,2924.6,2924.1,3.59731915]
[1765824578610,0.4546,2924.5,2924.1,0.002]
[1765824579311,3.41950485,2924.4,2924.1,0.002]
[1765824579515,0.4823,2924.2,2924.1,0.002]
[1765824580021,0.9369,2924.2,2924.1,0.002]
[1765824580226,1.342404,2924.2,2924.1,0.002]
[1765824580777,0.405504,2924.1,2924.0,0.002]
[1765824581013,1.222604,2924.1,2924.0,0.002]
[1765824581178,1.55875833,2924.1,2923.0,0.002]
[1765824581382,0.405504,2923.7,2923.0,0.002]
[1765824581593,0.558,2923.6,2923.0,0.002]
[1765824581815,0.1829,2923.7,2923.0,0.002]
[1765824582001,0.6375,2923.7,2923.0,0.002]
[1765824582316,0.558,2923.6,2923.0,0.002]
[1765824582486,0.558,2923.6,2923.1,0.169]
[1765824582810,0.558,2923.6,2923.0,0.002]
[1765824583012,1.0126,2923.6,2923.0,0.002]
[1765824584330,4.43305031,2923.6,2923.0,0.002]
[1765824584481,0.4546,2923.5,2923.0,0.002]